bitfinex/quotes_BTCUSD_20250614
["timestamp","ask_amount","ask_price","bid_price","bid_amount"]
[1749923853000,0.44676226,104740.0,104730.0,0.29950693]
[1749923853239,0.43721518,104740.0,104730.0,0.29950693]
[1749923853452,0.46243683,104740.0,104730.0,0.29950693]
[1749923853658,0.44676226,104740.0,104730.0,0.29950693]
[1749923853803,0.45288952,104740.0,104730.0,0.29950693]
[1749923854003,0.46243651,104740.0,104730.0,0.29950693]
[1749923854206,0.43721518,104740.0,104730.0,0.29950693]
[1749923854529,0.42384331,104740.0,104730.0,0.29950693]
[1749923854725,0.42996977,104740.0,104730.0,0.29950693]
[1749923854929,0.05374552,104740.0,104730.0,0.45582693]
[1749923855135,0.03306576,104740.0,104730.0,0.55206869]
[1749923855330,0.02410951,104740.0,104730.0,0.55206869]
[1749923855543,0.43891365,104750.0,104740.0,0.28329025]
[1749923855776,0.44796099,104750.0,104740.0,0.28329025]
[1749923855946,0.4412439,104750.0,104740.0,0.28329025]
[1749923856146,0.45750726,104750.0,104740.0,0.28329025]
[1749923856374,0.44855249,104750.0,104740.0,0.28329025]
[1749923856690,0.45751045,104750.0,104740.0,0.28329025]
[1749923856899,0.46705682,104750.0,104740.0,0.28329025]
[1749923857528,0.4485525,104750.0,104740.0,0.28329025]
[1749923857734,0.44796421,104750.0,104740.0,0.28329025]
[1749923857945,0.45751054,104750.0,104740.0,0.28329025]
[1749923858164,0.45851056,104750.0,104740.0,0.28329025]
[1749923858373,0.45179208,104750.0,104740.0,0.28329025]
[1749923858583,0.48032422,104750.0,104740.0,0.28329025]
[1749923858784,0.46464777,104750.0,104740.0,0.28329025]
[1749923858989,0.47360574,104750.0,104740.0,0.28329025]
[1749923859435,0.46464777,104750.0,104740.0,0.28329025]
[1749923859615,0.47136625,104750.0,104740.0,0.28329025]
[1749923859825,0.48032422,104750.0,104740.0,0.28329025]
[1749923860042,0.67125572,104750.0,104740.0,0.28329043]
[1749923860255,0.64833685,104750.0,104740.0,0.28329043]
[1749923860479,0.64833688,104750.0,104740.0,0.28329043]
[1749923860707,0.6416184,104750.0,104740.0,0.28329043]
[1749923860961,0.64833689,104750.0,104740.0,0.28329043]
[1749923861390,0.63937891,104750.0,104740.0,0.28329043]
[1749923861591,0.6483369,104750.0,104740.0,0.29283733]
[1749923861837,0.64161841,104750.0,104740.0,0.29283733]
[1749923862050,0.6483369,104750.0,104740.0,0.29283733]
[1749923862463,0.64161841,104750.0,104740.0,0.29283733]
[1749923862701,0.6483369,104750.0,104740.0,0.29283733]
[1749923862925,0.63937891,104750.0,104740.0,0.29283733]
[1749923863141,0.6483369,104750.0,104740.0,0.29283733]
[1749923863600,0.64161841,104750.0,104740.0,0.29283733]
[1749923863818,0.63937891,104750.0,104740.0,0.29283733]
[1749923864034,0.6483369,104750.0,104740.0,0.29283733]
[1749923864274,0.63266042,104750.0,104740.0,0.29283733]
[1749923864696,0.6483369,104750.0,104740.0,0.29283733]
[1749923865117,0.63266042,104750.0,104740.0,0.28329043]
[1749923865328,0.63937891,104750.0,104740.0,0.28329043]
[1749923865554,0.64833688,104750.0,104740.0,0.28329043]
[1749923865780,0.64833689,104750.0,104740.0,0.28329043]
[1749923865968,0.64161841,104750.0,104740.0,0.28329043]
[1749923866214,0.63937891,104750.0,104740.0,0.28329043]
[1749923866432,0.6483369,104750.0,104740.0,0.28329043]
[1749923866642,0.64161841,104750.0,104740.0,0.28329043]
[1749923866850,0.6483369,104750.0,104740.0,0.28329043]
[1749923867058,0.62983301,104750.0,104740.0,0.27374362]
[1749923867279,0.63879151,104750.0,104740.0,0.2832907]
[1749923867493,0.6320728,104750.0,104740.0,0.2832907]
[1749923867701,0.63879158,104750.0,104740.0,0.2832907]
[1749923867919,0.62983323,104750.0,104740.0,0.2832907]
[1749923868144,0.63879163,104750.0,104740.0,0.2832907]
[1749923868613,0.63877812,104750.0,104740.0,0.2832907]
[1749923869038,0.63876808,104750.0,104740.0,0.2832907]
[1749923869292,0.63876808,104750.0,104740.0,0.29283769]
[1749923869503,0.63876806,104750.0,104740.0,0.29283769]
[1749923869894,0.45199557,104750.0,104740.0,0.29283769]
[1749923870104,0.28922198,104750.0,104740.0,0.29283769]
[1749923870317,0.28251332,104750.0,104740.0,0.29283769]
[1749923870523,0.27356844,104750.0,104740.0,0.29283769]
[1749923870728,0.28251332,104750.0,104740.0,0.29283769]
[1749923870932,0.27356844,104750.0,104740.0,0.29283769]
[1749923871564,0.28251331,104750.0,104740.0,0.29283769]
[1749923871986,0.28251332,104750.0,104740.0,0.29283769]
[1749923872627,0.28251331,104750.0,104740.0,0.29283769]
[1749923872841,0.2825133,104750.0,104740.0,0.29283769]
[1749923873048,0.27356844,104750.0,104740.0,0.2832907]
[1749923873710,0.28251332,104750.0,104740.0,0.2832907]
[1749923874139,0.20049627,104740.0,104730.0,0.41805542]
[1749923874357,0.02864133,104740.0,104730.0,0.43715113]
[1749923874581,0.0375863,104740.0,104730.0,0.43715113]
[1749923874825,0.02864133,104740.0,104730.0,0.43715113]
[1749923875044,0.03758633,104740.0,104730.0,0.43715113]
[1749923875478,0.02803907,104740.0,104730.0,0.43615113]
[1749923875715,0.01909407,104740.0,104730.0,0.43715113]
[1749923875925,0.02803907,104740.0,104730.0,0.43715113]
[1749923876180,0.01909407,104740.0,104730.0,0.43715113]
[1749923876391,0.02864133,104740.0,104730.0,0.43715113]
[1749923876596,0.03758633,104740.0,104730.0,0.43715113]
[1749923877455,0.02803907,104740.0,104730.0,0.43715113]
[1749923877662,0.01909407,104740.0,104730.0,0.43715113]
[1749923877899,0.02803907,104740.0,104730.0,0.43715113]
[1749923878122,0.01909407,104740.0,104730.0,0.43715113]
[1749923878358,0.0375857,104740.0,104730.0,0.43715113]
[1749923878773,0.02803837,104740.0,104730.0,0.43715113]
[1749923878983,0.01909353,104740.0,104730.0,0.43715113]
[1749923879196,0.03758552,104740.0,104730.0,0.43715113]
[1749923879445,0.02864061,104740.0,104730.0,0.43715113]
[1749923879673,0.03759908,104740.0,104730.0,0.43715113]
[1749923879906,0.02864061,104740.0,104730.0,0.43715113]
[1749923880326,0.03759912,104740.0,104730.0,0.43715113]
[1749923880529,0.02864061,104740.0,104730.0,0.43715113]
[1749923880938,0.03818778,104740.0,104730.0,0.43715113]
[1749923881169,0.04714455,104740.0,104730.0,0.43715113]
[1749923881379,0.03818778,104740.0,104730.0,0.43715113]
[1749923881585,0.03759738,104740.0,104730.0,0.43715113]
[1749923882853,0.02864061,104740.0,104730.0,0.43715113]
[1749923883283,0.03759729,104740.0,104730.0,0.43715113]
[1749923884172,0.02864052,104740.0,104730.0,0.43715113]
[1749923884383,0.03759729,104740.0,104730.0,0.43715113]
[1749923884590,0.02864052,104740.0,104730.0,0.43715113]
[1749923885210,0.03759729,104740.0,104730.0,0.43715113]
[1749923885421,0.02864052,104740.0,104730.0,0.43715113]
[1749923885631,0.04714437,104740.0,104730.0,0.43715113]
[1749923885841,0.0381876,104740.0,104730.0,0.43715113]
[1749923886049,0.04714437,104740.0,104730.0,0.43715113]
[1749923886536,0.0381876,104740.0,104730.0,0.43715113]
[1749923887004,0.04714437,104740.0,104730.0,0.43715113]
[1749923887213,0.0381876,104740.0,104730.0,0.43715113]
[1749923887417,0.03818769,104740.0,104730.0,0.43715113]
[1749923887624,0.03759729,104740.0,104730.0,0.43715113]
[1749923887836,0.01909353,104740.0,104730.0,0.43715113]
[1749923888192,0.02805027,104740.0,104730.0,0.43715113]
[1749923888399,0.01909353,104740.0,104730.0,0.43715113]
[1749923888600,0.02805025,104740.0,104730.0,0.43715113]
[1749923889015,0.00954663,104740.0,104730.0,0.43715113]
[1749923889213,0.01909344,104740.0,104730.0,0.43715113]
[1749923889609,0.02864043,104740.0,104730.0,0.43715113]
[1749923889828,0.0280499,104740.0,104730.0,0.43715113]
[1749923890057,0.00895646,104740.0,104730.0,0.43715113]
[1749923890233,0.0280499,104740.0,104730.0,0.43715113]
[1749923890448,0.01909344,104740.0,104730.0,0.43715113]
[1749923890654,0.0280499,104740.0,104730.0,0.43715113]
[1749923891501,0.02864034,104740.0,104730.0,0.43715113]
[1749923892255,0.0375968,104740.0,104730.0,0.43715113]
[1749923892658,0.02864034,104740.0,104730.0,0.43715113]
[1749923892863,0.0375968,104740.0,104730.0,0.43715113]
[1749923893518,0.02864034,104740.0,104730.0,0.43715113]
[1749923894159,0.01909344,104740.0,104730.0,0.43715113]
[1749923894370,0.02804971,104740.0,104730.0,0.43715113]
[1749923894993,0.0280497,104740.0,104730.0,0.43715113]
[1749923895205,0.01909344,104740.0,104730.0,0.43715113]
[1749923895416,0.02804971,104740.0,104730.0,0.43715113]
[1749923895821,0.01909344,104740.0,104730.0,0.43715113]
[1749923896027,0.0375967,104740.0,104730.0,0.43715113]
[1749923896405,0.02804971,104740.0,104730.0,0.43715113]
[1749923896641,0.01909344,104740.0,104730.0,0.43715113]
[1749923897069,0.02804969,104740.0,104730.0,0.43715113]
[1749923897237,0.02864034,104740.0,104730.0,0.43715113]
[1749923897448,0.0375966,104740.0,104730.0,0.43715113]
[1749923898022,0.03759663,104740.0,104730.0,0.43715113]
[1749923898254,0.03759837,104740.0,104730.0,0.43715113]
[1749923898463,0.02864034,104740.0,104730.0,0.43715113]
[1749923898682,0.03759836,104740.0,104730.0,0.43715113]
[1749923899687,0.03759423,104740.0,104730.0,0.43715113]
[1749923900288,0.02864034,104740.0,104730.0,0.43715113]
[1749923900466,0.03759365,104740.0,104730.0,0.43715113]
[1749923900667,0.02864034,104740.0,104730.0,0.43715113]
[1749923900893,0.03759314,104740.0,104730.0,0.43715113]
[1749923901094,0.46428803,104750.0,104740.0,0.21004363]
[1749923901456,0.47100242,104750.0,104740.0,0.21004363]
[1749923901662,0.47100218,104750.0,104740.0,0.21004363]
[1749923901860,0.46428803,104750.0,104740.0,0.21004363]
[1749923902479,0.47100182,104750.0,104740.0,0.21004363]
[1749923902689,0.47100179,104750.0,104740.0,0.25089062]
[1749923902894,0.46428803,104750.0,104740.0,0.25089062]
[1749923903104,0.47100172,104750.0,104740.0,0.25089062]
[1749923903307,0.47200172,104750.0,104740.0,0.24134363]
[1749923903732,0.46528803,104750.0,104740.0,0.24134363]
[1749923903936,0.47200172,104750.0,104740.0,0.24134363]
[1749923904154,0.46528803,104750.0,104740.0,0.24134363]
[1749923904547,0.46528803,104750.0,104740.0,0.25089071]
[1749923905073,0.47200172,104750.0,104740.0,0.25089071]
[1749923905336,0.46528803,104750.0,104740.0,0.25089071]
[1749923905540,0.47200175,104750.0,104740.0,0.25089071]
[1749923906822,0.46528803,104750.0,104740.0,0.25089071]
[1749923906997,0.47200175,104750.0,104740.0,0.25089071]
[1749923907207,0.47200203,104750.0,104740.0,0.25089071]
[1749923907410,0.46528803,104750.0,104740.0,0.25089071]
[1749923907828,0.47200203,104750.0,104740.0,0.25089071]
[1749923908244,0.46528803,104750.0,104740.0,0.25089071]
[1749923908862,0.47200203,104750.0,104740.0,0.25089071]
[1749923909083,0.46528803,104750.0,104740.0,0.25089071]
[1749923909288,0.47200203,104750.0,104740.0,0.25089071]
[1749923909705,0.47200203,104750.0,104740.0,0.2604377]
[1749923909913,0.46528803,104750.0,104740.0,0.2604377]
[1749923910318,0.47200203,104750.0,104740.0,0.2604377]
[1749923910520,0.46528803,104750.0,104740.0,0.2604377]
[1749923910995,0.46528803,104750.0,104740.0,0.25089071]
[1749923911208,0.47200423,104750.0,104740.0,0.25089071]
[1749923912085,0.47200454,104750.0,104740.0,0.25089071]
[1749923912591,0.47200453,104750.0,104740.0,0.2604377]
[1749923913003,0.47200453,104750.0,104740.0,0.2933377]
[1749923913205,0.47424325,104750.0,104740.0,0.2933377]
[1749923913417,0.47200443,104750.0,104740.0,0.2933377]
[1749923913852,0.46528803,104750.0,104740.0,0.2933377]
[1749923914063,0.48095963,104750.0,104740.0,0.2933377]
[1749923914277,0.47200447,104750.0,104740.0,0.2933377]
[1749923914480,0.48095972,104750.0,104740.0,0.2933377]
[1749923914685,0.47424328,104750.0,104740.0,0.2933377]
[1749923914892,0.47200446,104750.0,104740.0,0.3028846]
[1749923915101,0.48095971,104750.0,104740.0,0.3028846]
[1749923915322,0.46528803,104750.0,104740.0,0.3028846]
[1749923915541,0.48095968,104750.0,104740.0,0.3028846]
[1749923915765,0.43092004,104750.0,104740.0,0.30288396]
[1749923915972,0.44718289,104750.0,104740.0,0.30288396]
[1749923916182,0.44718288,104750.0,104740.0,0.30288396]
[1749923916612,0.43822774,104750.0,104740.0,0.30288396]
[1749923916852,0.43822772,104750.0,104740.0,0.30288396]
[1749923917050,0.44718293,104750.0,104740.0,0.30288396]
[1749923917269,0.43822773,104750.0,104740.0,0.30288396]
[1749923917478,0.63811365,104750.0,104740.0,0.28379025]
[1749923917707,0.63811364,104750.0,104740.0,0.27424326]
[1749923917945,0.63811364,104750.0,104740.0,0.28379025]
[1749923918150,0.63811367,104750.0,104740.0,0.28379025]
[1749923918360,0.6291585,104750.0,104740.0,0.28379025]
[1749923918586,0.63811367,104750.0,104740.0,0.28379025]
[1749923919238,0.63811368,104750.0,104740.0,0.28379025]
[1749923919486,0.6291585,104750.0,104740.0,0.28379025]
[1749923919697,0.63811367,104750.0,104740.0,0.28379025]
[1749923919953,0.62915849,104750.0,104740.0,0.28379025]
[1749923920202,0.63811367,104750.0,104740.0,0.28379025]
[1749923920607,0.63139729,104750.0,104740.0,0.28379025]
[1749923920804,0.63811367,104750.0,104740.0,0.28379025]
[1749923921065,0.6313973,104750.0,104740.0,0.28379025]
[1749923921272,0.63811369,104750.0,104740.0,0.28379025]
[1749923921735,0.6291585,104750.0,104740.0,0.28379025]
[1749923921967,0.62244211,104750.0,104740.0,0.28379025]
[1749923922200,0.6313973,104750.0,104740.0,0.28379025]
[1749923922664,0.6291585,104750.0,104740.0,0.28379025]
[1749923922894,0.63811369,104750.0,104740.0,0.28379025]
[1749923923136,0.6313973,104750.0,104740.0,0.28379025]
[1749923923328,0.63811368,104750.0,104740.0,0.28379025]
[1749923923531,0.62244211,104750.0,104740.0,0.28379025]
[1749923923644,0.63811368,104750.0,104740.0,0.28379025]
[1749923923849,0.6291585,104750.0,104740.0,0.28379025]
[1749923924112,0.63811368,104750.0,104740.0,0.28379025]
[1749923924353,0.62915863,104750.0,104740.0,0.28379025]
[1749923924665,0.63811396,104750.0,104740.0,0.28379025]
[1749923924822,0.62915861,104750.0,104740.0,0.28379025]
[1749923925026,0.63811394,104750.0,104740.0,0.28379025]
[1749923925223,0.62915861,104750.0,104740.0,0.28379025]
[1749923925660,0.63811394,104750.0,104740.0,0.28379025]
[1749923925810,0.63139744,104750.0,104740.0,0.28379025]
[1749923926019,0.63139742,104750.0,104740.0,0.28379025]
[1749923926309,0.63811388,104750.0,104740.0,0.28379025]
[1749923926531,0.62915858,104750.0,104740.0,0.28379025]
[1749923926832,0.6313974,104750.0,104740.0,0.28379025]
[1749923927054,0.63811387,104750.0,104740.0,0.28379025]
[1749923927231,0.62244211,104750.0,104740.0,0.28379025]
[1749923927602,0.63811387,104750.0,104740.0,0.28379025]
[1749923928248,0.6313974,104750.0,104740.0,0.28379025]
[1749923928466,0.62244211,104750.0,104740.0,0.28379025]
[1749923928686,0.62915857,104750.0,104740.0,0.27424326]
[1749923928913,0.62915901,104750.0,104740.0,0.27424363]
[1749923929166,0.63139798,104750.0,104740.0,0.27424363]
[1749923929437,0.63811488,104750.0,104740.0,0.27424363]
[1749923929692,0.63811488,104750.0,104740.0,0.28379071]
[1749923929932,0.63811487,104750.0,104740.0,0.28379071]
[1749923930170,0.62244211,104750.0,104740.0,0.28379071]
[1749923930417,0.63811483,104750.0,104740.0,0.28379071]
[1749923930650,0.63139795,104750.0,104740.0,0.28379071]
[1749923930891,0.63811483,104750.0,104740.0,0.28379071]
[1749923931395,0.62915899,104750.0,104740.0,0.28379071]
[1749923931660,0.63811483,104750.0,104740.0,0.28379071]
[1749923932128,0.62244211,104750.0,104740.0,0.28379071]
[1749923932312,0.62915898,104750.0,104740.0,0.28379071]
[1749923932562,0.63811481,104750.0,104740.0,0.28379071]
[1749923932769,0.62856874,104750.0,104740.0,0.28379098]
[1749923932985,0.61961291,104750.0,104740.0,0.28379098]
[1749923933187,0.62185187,104750.0,104740.0,0.28379098]
[1749923933450,0.62856873,104750.0,104740.0,0.28379098]
[1749923933684,0.62185186,104750.0,104740.0,0.28379098]
[1749923933891,0.62185187,104750.0,104740.0,0.28379098]
[1749923934018,0.61961291,104750.0,104740.0,0.28379098]
[1749923934248,0.62185187,104750.0,104740.0,0.28379098]
[1749923934460,0.61961291,104750.0,104740.0,0.28379098]
[1749923934672,0.62185187,104750.0,104740.0,0.28379098]
[1749923934846,0.61289603,104750.0,104740.0,0.28379098]
[1749923935660,0.62185186,104750.0,104740.0,0.28379098]
[1749923935952,0.62856873,104750.0,104740.0,0.28379098]
[1749923936168,0.61289603,104750.0,104740.0,0.28379098]
[1749923936358,0.62185186,104750.0,104740.0,0.28379098]
[1749923936674,0.6196129,104750.0,104740.0,0.28379098]
[1749923936790,0.62185186,104750.0,104740.0,0.28379098]
[1749923937034,0.62856873,104750.0,104740.0,0.28379098]
[1749923937235,0.6196129,104750.0,104740.0,0.28379098]
[1749923937442,0.62856867,104750.0,104740.0,0.28379098]
[1749923937653,0.62185101,104750.0,104740.0,0.28379098]
[1749923937867,0.61289603,104750.0,104740.0,0.28379098]
[1749923938103,0.62856572,104750.0,104740.0,0.28379098]
[1749923938324,0.61961162,104750.0,104740.0,0.28379098]
[1749923938537,0.61961161,104750.0,104740.0,0.28379098]
[1749923938740,0.6196116,104750.0,104740.0,0.28379098]
[1749923938945,0.62185012,104750.0,104740.0,0.28379098]
[1749923939360,0.6196116,104750.0,104740.0,0.28379098]
[1749923939821,0.61289603,104750.0,104740.0,0.28379098]
[1749923940252,0.62856569,104750.0,104740.0,0.28379098]
[1749923940918,0.61289603,104750.0,104740.0,0.28379098]
[1749923941338,0.6196116,104750.0,104740.0,0.28379098]
[1749923941957,0.61289603,104750.0,104740.0,0.28379098]
[1749923942168,0.62185012,104750.0,104740.0,0.28379098]
[1749923942376,0.6196116,104750.0,104740.0,0.28379098]
[1749923942576,0.62185013,104750.0,104740.0,0.28379098]
[1749923942791,0.61289603,104750.0,104740.0,0.28379098]
[1749923942987,0.6285657,104750.0,104740.0,0.28379098]
[1749923943193,0.61289603,104750.0,104740.0,0.28379098]
[1749923943435,0.6285657,104750.0,104740.0,0.28379098]
[1749923944753,0.6285657,104750.0,104740.0,0.29333806]
[1749923944976,0.61289603,104750.0,104740.0,0.28379098]
[1749923945172,0.61289603,104750.0,104740.0,0.29333797]
[1749923945310,0.61961186,104750.0,104740.0,0.29333797]
[1749923945532,0.64925916,104750.0,104740.0,0.28379098]
[1749923945733,0.65821366,104750.0,104740.0,0.28379098]
[1749923945940,0.66492953,104750.0,104740.0,0.28379098]
[1749923946154,0.6285664,104750.0,104740.0,0.28379098]
[1749923946400,0.62185053,104750.0,104740.0,0.28379098]
[1749923946576,0.6196119,104750.0,104740.0,0.28379098]
[1749923946803,0.62185053,104750.0,104740.0,0.28379098]
[1749923946921,0.6285664,104750.0,104740.0,0.28379098]
[1749923947631,0.6196119,104750.0,104740.0,0.28379098]
[1749923947831,0.62185053,104750.0,104740.0,0.28379098]
[1749923948057,0.6285664,104750.0,104740.0,0.28379098]
[1749923948256,0.61289603,104750.0,104740.0,0.28379098]
[1749923948465,0.6285664,104750.0,104740.0,0.28379098]
[1749923949019,0.62185053,104750.0,104740.0,0.27424381]
[1749923949224,0.62185052,104750.0,104740.0,0.28379107]
[1749923949427,0.62185052,104750.0,104740.0,0.29333824]
[1749923949635,0.61289603,104750.0,104740.0,0.29333824]
[1749923949842,0.62856639,104750.0,104740.0,0.29333824]
[1749923950063,0.61289603,104750.0,104740.0,0.29333824]
[1749923950285,0.6196119,104750.0,104740.0,0.29333824]
[1749923950493,0.6196119,104750.0,104740.0,0.30288523]
[1749923951019,0.61961189,104750.0,104740.0,0.29333824]
[1749923951213,0.62856638,104750.0,104740.0,0.29333824]
[1749923951666,0.62185052,104750.0,104740.0,0.29333824]
[1749923951883,0.62856706,104750.0,104740.0,0.29333824]
[1749923952120,0.72471678,104750.0,104740.0,0.29333824]
[1749923952386,0.70904525,104750.0,104740.0,0.29333824]
[1749923952604,0.62856798,104750.0,104740.0,0.29333824]
[1749923952827,0.62856837,104750.0,104740.0,0.29333824]
[1749923953023,0.6196127,104750.0,104740.0,0.28379107]
[1749923953286,0.62856829,104750.0,104740.0,0.29333815]
[1749923953732,0.62856829,104750.0,104740.0,0.28379107]
[1749923953958,0.61289603,104750.0,104740.0,0.28379107]
[1749923954198,0.61961271,104750.0,104740.0,0.29333824]
[1749923954617,0.6285683,104750.0,104740.0,0.29333824]
[1749923954836,0.62856831,104750.0,104740.0,0.29333824]
[1749923955056,0.62856829,104750.0,104740.0,0.29333824]
[1749923955281,0.62185162,104750.0,104740.0,0.29333824]
[1749923955500,0.62856831,104750.0,104740.0,0.29333824]
[1749923956197,0.62185161,104750.0,104740.0,0.29333824]
[1749923956404,0.62856832,104750.0,104740.0,0.29333824]
[1749923956607,0.61961272,104750.0,104740.0,0.29333824]
[1749923956817,0.62856829,104750.0,104740.0,0.29333824]
[1749923957020,0.61289603,104750.0,104740.0,0.29333824]
[1749923957225,0.62185156,104750.0,104740.0,0.29333824]
[1749923957654,0.6285682,104750.0,104740.0,0.29333824]
[1749923957866,0.62185156,104750.0,104740.0,0.29333824]
[1749923958085,0.62856818,104750.0,104740.0,0.29333824]
[1749923958289,0.6285682,104750.0,104740.0,0.29333824]
[1749923958508,0.6196127,104750.0,104740.0,0.28379107]
[1749923958965,0.61961269,104750.0,104740.0,0.28379107]
[1749923959187,0.62856825,104750.0,104740.0,0.28379107]
[1749923959418,0.62856864,104750.0,104740.0,0.29333824]
[1749923959648,0.62856856,104750.0,104740.0,0.29333824]
[1749923959891,0.61289603,104750.0,104740.0,0.29333824]
[1749923960125,0.62856856,104750.0,104740.0,0.29333824]
[1749923960345,0.62856847,104750.0,104740.0,0.29333824]
[1749923960801,0.62856846,104750.0,104740.0,0.29333824]
[1749923961252,0.61289603,104750.0,104740.0,0.29333824]
[1749923961682,0.62185152,104750.0,104740.0,0.29333824]
[1749923961907,0.6285681,104750.0,104740.0,0.29333824]
[1749923962133,0.6285679,104750.0,104740.0,0.29333824]
[1749923962361,0.65675583,104750.0,104740.0,0.29333824]
[1749923962835,0.6724277,104750.0,104740.0,0.29333824]
[1749923962836,0.66347235,104750.0,104740.0,0.29333824]
[1749923963057,0.67242771,104750.0,104740.0,0.29333824]
[1749923963281,0.65675583,104750.0,104740.0,0.29333824]
[1749923963501,0.67242771,104750.0,104740.0,0.29333824]
[1749923963750,0.69535346,104750.0,104740.0,0.29333824]
[1749923963974,0.6863981,104750.0,104740.0,0.29333824]
[1749923964197,0.69535346,104750.0,104740.0,0.29333824]
[1749923964419,0.67968158,104750.0,104740.0,0.29333824]
[1749923964887,0.6425383,104750.0,104740.0,0.29333824]
[1749923965110,0.65149366,104750.0,104740.0,0.28379107]
[1749923965347,0.63582178,104750.0,104740.0,0.28379107]
[1749923965572,0.65149366,104750.0,104740.0,0.28379107]
[1749923965794,0.64477714,104750.0,104740.0,0.28379107]
[1749923966024,0.65149366,104750.0,104740.0,0.28379107]
[1749923966708,0.64194731,104750.0,104740.0,0.26469646]
[1749923966874,0.63299195,104750.0,104740.0,0.26469646]
[1749923967104,0.63523079,104750.0,104740.0,0.27424381]
[1749923967317,0.62627543,104750.0,104740.0,0.27424381]
[1749923967534,0.63299196,104750.0,104740.0,0.27424381]
[1749923967714,0.64194733,104750.0,104740.0,0.27424381]
[1749923967936,0.6352308,104750.0,104740.0,0.27424381]
[1749923968100,0.63299196,104750.0,104740.0,0.28379107]
[1749923968491,0.6352308,104750.0,104740.0,0.29333824]
[1749923968923,0.63523081,104750.0,104740.0,0.29333824]
[1749923969135,0.62627543,104750.0,104740.0,0.29333824]
[1749923969351,0.64194956,104750.0,104740.0,0.29333824]
[1749923969565,0.64194967,104750.0,104740.0,0.29333824]
[1749923969782,0.64194981,104750.0,104740.0,0.29333824]
[1749923969999,0.79119224,104750.0,104740.0,0.30288532]
[1749923970220,0.61039672,104750.0,104740.0,0.30288468]
[1749923970440,0.62666077,104750.0,104740.0,0.30288468]
[1749923970659,0.62873978,104750.0,104740.0,0.30288468]
[1749923970877,0.62873986,104750.0,104740.0,0.30288468]
[1749923971092,0.63828639,104750.0,104740.0,0.30288468]
[1749923971329,0.64500453,104750.0,104740.0,0.30288468]
[1749923971552,0.64500518,104750.0,104740.0,0.30288468]
[1749923971774,0.62932887,104750.0,104740.0,0.30288468]
[1749923972013,0.63828687,104750.0,104740.0,0.30288468]
[1749923972411,0.64500537,104750.0,104740.0,0.30288468]
[1749923972658,0.6360482,104750.0,104740.0,0.30288468]
[1749923973122,0.64500621,104750.0,104740.0,0.30288468]
[1749923973346,0.6382877,104750.0,104740.0,0.30288468]
[1749923973589,0.62932969,104750.0,104740.0,0.30288468]
[1749923973802,0.6360482,104750.0,104740.0,0.30288468]
[1749923974031,0.64500622,104750.0,104740.0,0.30288468]
[1749923974276,0.64500626,104750.0,104740.0,0.30288468]
[1749923975445,0.64500623,104750.0,104740.0,0.30288468]
[1749923975669,0.83593703,104750.0,104740.0,0.30288468]
[1749923975889,0.82921851,104750.0,104740.0,0.30288468]
[1749923976110,0.82697899,104750.0,104740.0,0.30288468]
[1749923976326,0.82026047,104750.0,104740.0,0.30288468]
[1749923976548,0.83593704,104750.0,104740.0,0.30288468]
[1749923976771,0.826979,104750.0,104740.0,0.30288468]
[1749923976991,0.82026047,104750.0,104740.0,0.30288468]
[1749923977205,0.82921851,104750.0,104740.0,0.30288468]
[1749923977428,0.83593704,104750.0,104740.0,0.30288468]
[1749923977860,0.82921851,104750.0,104740.0,0.30288468]
[1749923978080,0.82639105,104750.0,104740.0,0.30288486]
[1749923978303,0.81743301,104750.0,104740.0,0.30288486]
[1749923978739,0.82639105,104750.0,104740.0,0.30288486]
[1749923978983,0.81743301,104750.0,104740.0,0.30288486]
[1749923979441,0.8263913,104750.0,104740.0,0.30288486]
[1749923979660,0.81743312,104750.0,104740.0,0.30288486]
[1749923980110,0.8263913,104750.0,104740.0,0.30288486]
[1749923980331,0.81743312,104750.0,104740.0,0.30288486]
[1749923980553,0.8263913,104750.0,104740.0,0.30288441]
[1749923980780,0.81967242,104750.0,104740.0,0.30288441]
[1749923981003,0.81743293,104750.0,104740.0,0.30288441]
[1749923981657,0.81967242,104750.0,104740.0,0.30288441]
[1749923981846,0.82639087,104750.0,104740.0,0.30288441]
[1749923982324,0.82639085,104750.0,104740.0,0.30288441]
[1749923982541,0.82639084,104750.0,104740.0,0.30288441]
[1749923982773,0.81743917,104750.0,104740.0,0.30288441]
[1749923983017,0.82639709,104750.0,104740.0,0.30288441]
[1749923983237,0.81743917,104750.0,104740.0,0.30288441]
[1749923983673,0.82639709,104750.0,104740.0,0.30288441]
[1749923983891,0.81743917,104750.0,104740.0,0.30288441]
[1749923984109,0.81967865,104750.0,104740.0,0.30288441]
[1749923984304,0.82639709,104750.0,104740.0,0.30288441]
[1749923984666,0.81743917,104750.0,104740.0,0.30288441]
[1749923984872,0.81967865,104750.0,104740.0,0.30288441]
[1749923985286,0.82639709,104750.0,104740.0,0.30288441]
[1749923985485,0.81743917,104750.0,104740.0,0.30288441]
[1749923985706,0.81072073,104750.0,104740.0,0.30288441]
[1749923985886,0.63003709,104750.0,104740.0,0.30288441]
[1749923986087,0.81963865,104750.0,104740.0,0.30288441]
[1749923986342,0.82635709,104750.0,104740.0,0.30288441]
[1749923986569,0.81739917,104750.0,104740.0,0.30288441]
[1749923986977,0.81068073,104750.0,104740.0,0.30288441]
[1749923987244,0.81739917,104750.0,104740.0,0.30288441]
[1749923987434,0.82635709,104750.0,104740.0,0.30288441]
[1749923987693,0.81963865,104750.0,104740.0,0.30288441]
[1749923988036,0.82635709,104750.0,104740.0,0.30288441]
[1749923988871,0.81963865,104750.0,104740.0,0.30288441]
[1749923989283,0.82635709,104750.0,104740.0,0.30288441]
[1749923989523,0.81739917,104750.0,104740.0,0.30288441]
[1749923989734,0.82635709,104750.0,104740.0,0.30288441]
[1749923991276,0.82635727,104750.0,104740.0,0.30288441]
[1749923991916,0.826357,104750.0,104740.0,0.30288441]
[1749923992141,0.81739897,104750.0,104740.0,0.30288441]
[1749923992340,0.82635662,104750.0,104740.0,0.30288441]
[1749923992575,0.81068073,104750.0,104740.0,0.30288441]
[1749923992801,0.82635662,104750.0,104740.0,0.30288441]
[1749923993016,0.81963838,104750.0,104740.0,0.30288441]
[1749923993425,0.82635662,104750.0,104740.0,0.30288441]
[1749923993652,0.81963838,104750.0,104740.0,0.30288441]
[1749923993878,0.81739897,104750.0,104740.0,0.30288441]
[1749923994126,0.81963838,104750.0,104740.0,0.30288441]
[1749923994355,0.46504425,104750.0,104740.0,0.30288441]
[1749923994866,0.46504425,104750.0,104740.0,0.30288396]
[1749923995111,0.46504424,104750.0,104740.0,0.30288396]
[1749923995380,0.26739524,104750.0,104740.0,0.30288396]
[1749923995532,0.24446324,104750.0,104740.0,0.30288396]
[1749923995733,0.24446323,104750.0,104740.0,0.30288396]
[1749923995967,0.28289396,104750.0,104740.0,0.30288396]
[1749923996140,0.47382474,104750.0,104740.0,0.29333715]
[1749923996356,0.50347498,104750.0,104740.0,0.29333715]
[1749923996526,0.49451733,104750.0,104740.0,0.29333715]
[1749923997172,0.48779909,104750.0,104740.0,0.29333715]
[1749923997380,0.49451733,104750.0,104740.0,0.29333715]
[1749923998049,0.49451732,104750.0,104740.0,0.29333715]
[1749923998276,0.50347496,104750.0,104740.0,0.29333715]
[1749923998529,0.49451733,104750.0,104740.0,0.29333715]